{"text_format":"3","workbook":"xlsx","n_sheets":13,"sheets":["Start","Grunderna","Introduktion till funktioner","MEDEL","MIN och MAX","Datum och tid","Sammanfoga text och tal","OM-uttryck","LETARAD","Villkorsstyrda funktioner","Funktionsguiden","Fel i formler","Läs mer"],"not_rendered":{"images":30,"defined_names":21},"read":"whole","date_system":"1900"}

{"sheet":"Start","index":0,"n_rows":4,"n_cols":1,"rows_kept":4}
[]
["Komma igång med formler"]
["Med några få steg kommer du igång med att skapa formler och funktioner i Excel, världens mest kraftfulla kalkylbladsprogram."]
["Tryck på CTRL+HOME om du vill gå tillbaka till början. Tryck på CTRL+PAGE DOWN när du vill starta introduktionen."]

{"sheet":"Grunderna","index":1,"n_rows":43,"n_cols":10,"rows_kept":43}
["Grunderna: matematik i Excel"]
["Du kan addera, subtrahera, multiplicera och dividera i Excel utan att använda inbyggda funktioner. Allt du behöver är de grundläggande operatorerna +, -, * och /. Alla formler inleds med ett likhetstecken (=).\n",null,"Nummer som kan användas:",null,"Operation:","Formler:","Svar:"]
["Addera genom att markera cell F3, skriva in =C3+C4 och trycka på RETUR. \n",null,1,null,"Addition (+) ",null,{"$f":"C3+C4","v":3}]
["Subtrahera genom att markera cell F4, skriva in =C3-C4 och trycka på RETUR. ",null,2,null,"Subtraktion (-) ",null,{"$f":"C3-C4","v":-1}]
["Multiplicera genom att markera cell F5, skriva in =C3*C4 och trycka på RETUR.\n",{"$nulls":3},"Multiplikation (*) ",null,{"$f":"C3*C4","v":2}]
["Dividera genom att markera cell F6, skriva in =C3/C4 och trycka på RETUR.\n",{"$nulls":3},"Division (/) ",null,{"$f":"C3/C4","v":0.5}]
["Kolla in det här: ändra talen i cellerna C3 och C4, och observera hur formelresultaten ändras automatiskt.",{"$nulls":3},"Exponent (^) ",null,{"$f":"C3^C4","v":1}]
["BONUSUPPGIFT: Du kan ange en exponent till ett bastal med hjälp av symbolen cirkumflex (^), till exempel =A1^A2. Ange det med SKIFT+¨. I cell F7 anger du =C3^C4."]
["Visa mer information"]
["Nästa steg"]
["Mer information om formler, celler och områden"]
["Excel består av ett antal celler som är grupperade i rader och kolumner. Rader markeras med nummer och kolumner med bokstäver. Det finns fler än en miljon rader och 16 000 kolumner, och du kan ange formler och funktioner i alla. \n"]
["Formler kan innehålla cellreferenser, områden med cellreferenser, operatorer och konstanter. Följande är alla exempel på formler:\n\n=A1+B1\n=10+20\n=SUMMA(A1:A10)\n\n"]
["Som du märker använder vi SUMMA-funktionen i tredje exemplet ovan. En funktion är ett färdigt kommando som tar ett eller flera värden, beräknar dem på ett visst sätt och returnerar resultatet. Funktionen SUMMA tar till exempel cellreferenser eller områden du anger, och returnerar den totalsumman. I det här exemplet beräknas totalsumman för cellerna A1 till A10. Excel innehåller fler än 400 funktioner som du kan utforska på fliken Formler.\n"]
["Formler med funktioner inleds med ett likhetstecken, sedan funktionsnamnet följt av argument (värden som en funktion använder för beräkningar) inom parenteser. \n"]
["Du kan kontrollera en formel genom att trycka på RETUR. När du gör det kommer formeln att beräknas och resultatet visas i cellen. Du kan se formeln i formelfältet under menyfliksområdet, eller genom att trycka på F2 för att öppna redigeringsläget och se formeln direkt i cellen. Tryck på RETUR igen för att slutföra formeln och beräkna resultatet.\n\n"]
["Förklaring av formler"]
["=10+20 är en formel där 10 och 20 är konstanter och +-tecknet är operatorn."]
["=SUMMA(A1:A10) är en formel där SUMMA är funktionsnamnet, inledande och avslutande parenteser innehåller formelns argument och A1:A10 är cellområdet funktionen utför beräkningar på."]
["=SUMMA(A1:A10;C1:C10) är en formel där SUMMA är funktionsnamnet, inledande och avslutande parenteser innehåller formelns argument och A1:A10;C1:C10 är cellområden åtskilda med semikolon som funktionen utför beräkningar på."]
["BRA ATT VETA: Konstanter är värden som du anger i celler och formler. Även om =10+20 kan ge samma resultat som = A1+B1 är konstanter ingen bra idé. Varför? På grund av att du inte enkelt kan se konstanten utan att först markera cellen och söka efter den. Det kan göra det svårare att göra ändringar senare. Det är mycket bättre att placera konstanterna i celler där de enkelt kan justeras, och sedan referera till dem i dina formler.\n\nExempel: Markera den gula cellen med 12 nedan. Som du ser använde vi SUMMA-funktionen och ett cellområde. Vi skrev inte in ”4” eller ”8” direkt i formeln. \n"]
["Föregående"]
["Nästa"]
["Mer information på webben"]
["Använda Excel som en kalkylator"]
["Översikt över formler i Excel"]
["Excel-funktioner (efter kategori) "]
["Excel-funktioner (alfabetisk ordning) "]
["Kostnadsfria Excel-kurser online"]
{"$rows_empty":10}
[{"$nulls":9},"Värden"]
[{"$nulls":9},4]
[{"$nulls":9},8]
[{"$nulls":9},{"$f":"SUM(J41:J42)","v":12}]

{"sheet":"Introduktion till funktioner","index":2,"n_rows":51,"n_cols":7,"rows_kept":51}
["Introduktion till funktioner"]
["Funktioner ger dig möjlighet att göra en mängd olika saker, som att utföra matematiska operationer, leta upp värden eller beräkna datum och tider. Vi testar några olika sätt att summera värden med funktionen SUMMA.",null,"Frukt","Belopp",null,"Kött","Belopp"]
["Under kolumnen Belopp för Frukt (cell D7) anger du =SUMMA(D3:D6), eller skriver =SUMMA( och sedan markerar området med musen och trycker på RETUR. Detta summerar värdena i cellerna D3, D4, D5 och D6. Resultatet ska bli 170.\n",null,"Äpplen",50,null,"Nötkött",50]
["Låt oss nu prova Autosumma. Markera cellen under kolumnen för Kött (cell G7) och gå till Formler > Autosumma > välj SUMMA. Som du ser anger Excel formeln åt dig automatiskt. Tryck på RETUR för att bekräfta. Funktionen Autosumma har alla de vanligaste funktionerna.\n",null,"Apelsiner",20,null,"Kyckling",30]
["Här är ett smart kortkommando. Markera cell D15 och tryck på Alt = och sedan RETUR. SUMMA anges automatiskt åt dig.",null,"Bananer",60,null,"Fläsk",10]
["Visa mer information",null,"Citroner",40,null,"Fisk",50]
["BONUSUPPGIFT\nProva funktionen ANTAL med hjälp av något av de metoder som du redan har kikat på. Funktionen ANTAL räknar antalet celler i ett område som innehåller tal.",null,"SUMMA > ",{"$f":"SUM(D3:D6)","v":170},null,"SUMMA > "]
["Nästa steg"]
["Mer information om funktioner",null,"Vara","Belopp",null,"Vara","Belopp"]
["Gå till fliken Formler och bläddra igenom Funktionsbibliotek där funktioner visas efter kategori, exempelvis Text eller Datum/tid. Med Infoga funktion kan du söka efter funktioner efter namn och starta Funktionsguiden som hjälper dig att skapa din formel. \n\nNär du börjar skriva ett funktionsnamn efter = aktiverar Excel IntelliSense som visar alla funktioner som börjar med bokstäverna du skriver in. När du hittar funktionen du vill använda trycker du på TABB. Excel sätter in funktionens namn och den inledande parentesen åt dig. Excel visar även valfria och obligatoriska argument. \n\n\n\nNu ska vi detaljstudera ett antal funktioner. Funktionen SUMMA är konstruerad så här:",null,"Bröd",50,null,"Bröd",50]
["Om funktionen SUMMA kunde tala skulle den säga: Returnera summan av alla värden i cellerna D35 till D38 och alla i kolumn H. SUMMA är funktionsnamnet, D35:D38 är det första områdesargumentet (som nästan alltid obligatoriskt), och H:H är det andra områdesargumentet, avgränsat med semikolon. Vi provar en som inte kräver några argument.\n",null,"Munkar",100,null,"Munkar",100]
["Funktionen IDAG returnerar dagens datum. Den uppdateras automatiskt när Excel genomför beräkningar.",null,"Kakor",40,null,"Kakor",40]
["KOLLA IN DET HÄR\nMarkera dessa celler. I det nedre högra hörnet av Excel-fönstret visas SUMMA: 170 i raden längst ned. Raden kallas för statusfältet och är ett annat sätt att snabbt hitta totalsumman och annan information om en markerad cell eller område. ",null,"Tårtor",50,null,"Tårtor",50]
["VIKTIG INFORMATION\nDubbelklicka på den här cellen. Du ser talet 100 längst ned. Även om det går att lägga till tal i en formel på det här sättet, så avråder vi från det om det inte är helt nödvändigt. Det här är en så kallad konstant, och det är lätt att glömma att den finns. Vi rekommenderar att du refererar till en annan cell i stället, t.ex. cell F51. På så sätt är den lätt att upptäcka och är inte dold inuti en formel. ",null,"Pajer",20,null,"Pajer",20]
["Mer information på webben",null,"SUMMA > ",null,null,"ANTAL >"]
["Allt om funktionen SUMMA"]
["Använda Autosumma för att summera tal"]
["Allt om funktionen ANTAL"]
["Kostnadsfria Excel-kurser online"]
["Tillbaka till början"]
["Nästa steg"]
{"$rows_empty":12}
[null,null,"Frukt","Belopp"]
[null,null,"Äpplen",50]
[null,null,"Apelsiner",20]
[null,null,"Bananer",60]
[null,null,"Citroner",40]
[null,null,"SUMMA > ",{"$f":"SUM(D35:D38)","v":170}]
[]
[]
[]
[]
[null,null,"Vara","Belopp"]
[null,null,"Bilar",20]
[null,null,"Lastbilar",10]
[null,null,"Cyklar",10]
[null,null,"Skridskor",40]
[]
[{"$nulls":3},"Summa:",null,"Ytterligare värden:","Nya totalsumma"]
[{"$nulls":3},{"$f":"SUM(D45:D48,100)","v":180},null,100,{"$f":"SUM(D45:D48,F51)","v":180}]

{"sheet":"MEDEL","index":3,"n_rows":15,"n_cols":7,"rows_kept":15}
["Funktionen MEDEL"]
["Använd funktionen MEDEL för att hämta medelvärdet av talen i ett cellområde.",null,"Frukt","Belopp",null,"Kött","Belopp"]
["Klicka på cell D7 och använd Autosumma för att lägga till en MEDEL-funktion.",null,"Äpplen",50,null,"Nötkött",50]
["Markera cell G7 och mata in en  MEDEL-funktion genom att skriva =MEDEL(G3:G6). ",null,"Apelsiner",20,null,"Kyckling",30]
["I cell D15 kan du använda guiden Autosumma eller skriva in ytterligare en MEDEL-funktion för hand. ",null,"Bananer",60,null,"Fläsk",10]
["KOLLA IN DET HÄR\nMarkera ett antal siffror och titta i statusfältet för att se medelvärdet.\n",null,"Citroner",40,null,"Fisk",50]
["Aktivera föregående blad",null,"MEDEL >",null,null,"MEDEL >"]
["Gå till nästa blad"]
["BONUSUPPGIFT\nProva att använda MEDIAN eller TYPVÄRDE här. \n\nMEDIAN returnerar ett värde från mitten av datauppsättningen, medan \nTYPVÄRDE returnerar det värde som är vanligast förekommande.\n",null,"Vara","Belopp",null,"Vara","Belopp"]
["Länkar till er information på webben",null,"Bröd",50,null,"Bröd",50]
["Klicka här om du vill lära dig allt om funktionen MEDEL från webben",null,"Munkar",100,null,"Munkar",100]
["Klicka här om du vill lära dig allt om funktionen MEDIAN från webben",null,"Kakor",40,null,"Kakor",40]
["Klicka här om du vill lära dig allt om funktionen TYPVÄRDE från webben",null,"Tårtor",50,null,"Tårtor",50]
["Klicka här om du vill lära dig mer om kostnadsfria Excel-kurser från webben",null,"Pajer",20,null,"Pajer",20]
[null,null,"MEDEL >"]

{"sheet":"MIN och MAX","index":4,"n_rows":15,"n_cols":7,"rows_kept":15}
["Funktionerna MIN och MAX"]
["Använd funktionen MIN för att hämta minsta talet i ett cellområde.",null,"Frukt","Belopp",null,"Kött","Belopp"]
["Använd funktionen MAX för att hämta största talet i ett cellområde.",null,"Äpplen",50,null,"Nötkött",50]
["Markera cell D7 och använd guiden Autosumma för att lägga till en MIN-funktion.\n",null,"Apelsiner",20,null,"Kyckling",30]
["Markera cell G7 och mata in en  MAX-funktion genom att skriva  =MAX(G3:G6).\n",null,"Bananer",60,null,"Fläsk",10]
["I cell D15 kan du använda guiden Autosumma eller skriva in en MIN- eller MAX-funktion för hand. \n",null,"Citroner",40,null,"Fisk",50]
["Mer information på webben\n",null,"MIN >",null,null,"MAX >"]
["Allt om funktionen MIN"]
["Allt om funktionen MAX",null,"Vara","Belopp",null,"Vara","Belopp"]
["Kostnadsfria Excel-kurser online",null,"Bröd",50,null,"Bröd",50]
["BRA ATT VETA\nDu kan använda MIN eller MAX med flera områden eller värden för att visa de större eller mindre av dessa värden, exempelvis =MIN(A1:A10;B1:B10) eller =MAX(A1:A10;B1), där B1 innehåller ett tröskelvärde (till exempel 10), vilket betyder att formeln inte returnerar ett resultat som är mindre än 10.\n",null,"Munkar",100,null,"Munkar",100]
[null,null,"Kakor",40,null,"Kakor",40]
[null,null,"Tårtor",50,null,"Tårtor",50]
[null,null,"Pajer",20,null,"Pajer",20]
[null,null,"MIN eller MAX >",{"$nulls":3},{"$f":"MIN(G10:G14,10)","v":10}]

{"sheet":"Datum och tid","index":5,"n_rows":47,"n_cols":6,"rows_kept":47,"merged":[[4,2,4,3],[26,2,26,3],[30,2,30,3],[44,2,44,3]]}
["Datumfunktioner"]
["Excel kan ge dig aktuellt datum baserat på din dators nationella inställningar. Du kan även lägga till och dra ifrån datum."]
["Ta en titt på funktionen IDAG, som ger dig dagens datum. Detta är dynamiska, eller obeständiga, funktioner så när du öppnar arbetsboken nästa dag visas morgondagens datum. Ange =IDAG() i cell D6. \n"]
["Subtrahera datum – Ange din nästa födelsedag i formatet ÅÅ-MM-DD i cell D7 och låt Excel berätta hur många dagar det är kvar med hjälp av =D7-D6 i cell D8.\n"]
["Lägga till datum – Antag att du vill veta vilka datum en faktura förfaller, eller när du ska lämna tillbaka en lånebok till biblioteket. Du kan lägga till dagar till ett datum för att ta reda på det. I cell D10 anger du ett slumpmässigt antal dagar. I cell D11 anger vi =D6+D10 för att beräkna förfallodatum utifrån dagens datum.\n",null,"Datumfunktioner"]
["BRA ATT VETA\nExcel håller koll på datum och tider baserat på antalet dagar sedan 1900 januari 1. Tid beräknas i form av delar av en dag, i minuter. 2017-01-01 12:30 lagras faktiskt som 42736,5208. Om tid eller datum visas som ett sådant tal kan du trycka på Ctrl + 1 > Tal och välja ett datum- eller tidsformat. ",null,"Dagens datum:",null,null,{"$f":"IF(D6=TODAY(),\"Det stämmer!\",\"\")","v":""}]
["VIKTIG INFORMATION\nOm du inte vill att Excel ska visa ett negativt tal, eftersom du inte har angivit födelsedag ännu, kan du använda en OM-funktion: =OM(D7=\"\";\"\";D7-D6) som betyder ”om D7 är lika med ingenting, visa ingenting, annars visas D7 minus D6”.\n",null,"Din födelsedag:"]
["Tidsfunktioner",null,"Dagar till din födelsedag:",{"$f":"D7-D6","v":0}]
["Excel kan ge dig aktuell tid baserat på din dators nationella inställningar. Du kan även lägga till och dra ifrån tid. Kanske behöver du hålla reda på hur många timmar en anställd arbetat varje vecka för att beräkna lön och övertid.\n"]
["I cell D28 skriver du in =NU(), vilket ger aktuellt klockslag (som uppdateras varje gång Excel utför beräkningar). Om du behöver ändra tidsformatet väljer du Ctrl+1 > Tal > Tid och väljer önskat format.\n",null,"Tidsfrist dagar:"]
["Summera timmar – I cell D36 har vi angett =((D35-D32)-(D34-D33))*24 som beräknar någons start- och sluttid, och drar ifrån lunchrasten. *24 i slutet av formeln konverterar Excels interna representation (bråkdelar av en dag) till timmar. Du måste utforma cellen som ett Tal. Detta gör du genom att gå till Start > Format > Celler (Ctrl+1) > Tal > Tal > 2 decimaler.\n\n",null,"Förfallodatum:",{"$f":"D6+D10","v":"00:00:00"}]
["Om den här formeln kan prata skulle den säga ”ta Tid in och subtrahera först Tid ut och därefter Lunch ut/Lunch in, multiplicera med 24 för att konvertera till timmar”, eller =((TidIn-TidUt)-(LunchIn - LunchUt))*24."]
["Föregående"]
["Nästa"]
["Mer information på webben"]
["Allt om IDAG-funktionen"]
["Allt om NU-funktionen"]
["Allt om DATUM-funktionen"]
["Kostnadsfria Excel-kurser online"]
{"$rows_empty":7}
[null,null,"Tidsfunktioner"]
[null,null,"Aktuell tid:"]
[]
[]
[null,null,"Total arbetstid"]
[null,null,"Tid in:","08:00:00"]
[null,null,"Lunch ut:","12:00:00"]
[null,null,"Lunch in:","13:00:00"]
[null,null,"Tid ut:","17:00:00"]
[null,null,"Timmar totalt:",{"$f":"((D35-D32)-(D34-D33))*24","v":8.000000000000002}]
{"$rows_empty":8}
[null,null,"Statiskt datum och tid"]
[null,null,"Datum:","2017-09-27"]
[null,null,"Tid:","08:52:00"]

{"sheet":"Sammanfoga text och tal","index":6,"n_rows":37,"n_cols":6,"rows_kept":37,"merged":[[26,2,26,3],[30,2,30,3],[34,2,34,3]]}
["Sammanfoga text från olika celler"]
["Det finns många skäl till att sammanfoga text som finns i olika celler. Ett vanligt exemplet är att vilja kombinera för- och efternamn som fullständiga namn eller på något annat sätt. Som tur är kan vi enkelt göra det i Excel med hjälp av et-tecknet (&), som du matar in med SKIFT+6.\n",null,"Förnamn","Efternamn","Efternamn, Förnamn","Fullständigt namn"]
["I cell E3 anger du =D3&C3 för att sammanfoga efter- och förnamn. \n",null,"Selma","Svensson",{"$f":"D3&\", \"&C3","v":"Svensson, Selma"},{"$f":"C3&\" \"&D3","v":"Selma Svensson"}]
["NybergSelma ser dock inte så bra ut. Vi måste lägga till ett kommatecken och ett blanksteg. Det gör vi genom att använda citattecken för att skapa en ny textsträng. Ange =D3&”, ”&C3. &”, ”& sätter in ett komma och ett blanksteg mellan texten från cellerna.\n",null,"Anthon","Nyberg"]
["För att bilda ett fullständig namn, sammanfogar vi för- och efternamn och sätter in ett blanksteg men hoppar över kommatecknet. Skriv in =C3&” ”&D3 i F3.\n",null,"Jan","Mattsson"]
["Visa mer information",null,"Mikaela","Johansson"]
["Nästa",null,"Staffan","Lindgren"]
["Kombinera text och tal",null,"Mattias","Nilsson"]
["Förutom att sammanfoga text med text kan & användas för att sammanfoga text och siffror\n\nTitta på cellerna C28:D29. Se du att datum och tid finns i olika celler? Du kan sammanfoga dem med &-symbolen precis som i cellerna C32:C33, men ser det inte lite konstigt ut? Tyvärr vet inte Excel hur du vill formatera tal, och bryter istället ner dem i det mest grundläggande formatet, vilket är datumserie i detta fall. Vi måste uttryckligen tala om för Excel hur taldelen av formeln ska formateras, så att textsträngen får det utseende du önskar. Du kan använda funktionen TEXT och en formatkod.",null,"Viktor","Hedlund"]
["I cell C36 anger du =C28&\" \"&TEXT(D28;\"ÅÅÅÅ-MM-DD\"). ÅÅÅÅ-MM-DD är den svenska formatkoden för år-månad-dag, exempelvis 2017-09-25.\n",null,"Gabriella","Eriksson"]
["I cell C37 anger du =C29&\" \"&TEXT(D29;\"TT:MM\"). TT:MM är svensk formatkod för timmar:minuter, exempelvis 14:30.\n\n"]
["KOLLA IN DET HÄR\nFormler, särskilt om de är stora, kan ibland vara svåra att läsa, men du kan använda blanksteg för att dela upp dem i delar:\n\n=C28 & \" \" & TEXT(D28;\"ÅÅÅÅ-MM-DD\")"]
["VÄRT ATT UTFORSKA\nOm du inte vet vilket format du ska använda kan du använda Ctrl + 1 > Tal för att formatera cellens innehåll. Välj sedan alternativet Anpassat. Du kan kopiera formatkoden som visas till formeln."]
["Mer information på webben"]
["Allt om funktionen TEXT"]
["Kombinera text och tal"]
["Kostnadsfria Excel-kurser online"]
{"$rows_empty":9}
[null,null,"Använda text och tal"]
[null,null,"Dagens datum:",{"$f":"TODAY()","v":"2021-10-19"}]
[null,null,"Aktuell tid:",{"$f":"NOW()","v":44488.48499467593}]
[]
[null,null,"Sammanfoga text och tal"]
[null,null,{"$f":"C28&\" \"&D28","v":"Dagens datum: 44488"}]
[null,null,{"$f":"C29&\" \"&D29","v":"Aktuell tid: 44488.4849946759"}]
[]
[null,null,"Formatera text och tal"]
[null,null,{"$f":"C28 &\" \"& TEXT(D28,\"ÅÅÅÅ-MM-DD\")","v":"Dagens datum: Tuesday-10-19"}]
[null,null,{"$f":"C29&\" \"&TEXT(D29,\"TT:MM\")","v":"Aktuell tid: TT:10"}]

{"sheet":"OM-uttryck","index":7,"n_rows":37,"n_cols":6,"rows_kept":37,"merged":[[7,2,7,3]]}
["OM-uttryck"]
["Med hjälp av OM-uttryck kan du göra logiska jämförelser mellan villkor. En OM-sats är vanligtvis konstruerad att utföra något om ett villkor är sant, i annat fall utförs något annat. Formler kan returnera text, ett värde eller fler beräkningar."]
["Skriv in =OM(C9=\"Äpple\";SANT;FALSK) i cell D9. Rätt svar är SANT. \n"]
["Kopiera D9 till D10. Svaret här ska vara FALSKT, eftersom en apelsin inte är ett äpple.\n"]
["Prova ett annat exempel genom att studera formeln i cell D12. Vi började med =OM(C12 < 100;”Mindre än 100”;”Större än eller lika med 100”). Vad händer om du anger ett tal som är större än 100 i cell C12?\n"]
["VIKTIG INFORMATION\nSANT och FALSKT behöver till skillnad från andra ord i Excel-formler inte anges med citattecken, och Excel kommer automatiskt att använda versaler. Tal anges inte heller med citattecken. Vanlig text, som Ja eller Nej måste anges med citattecken: \n=OM(C9=\"Äpple\";\"Ja\";\"Nej\")"]
["Visa mer information"]
["Nästa",null,"OM-uttryck"]
["OM-uttryck med en annan funktion",null,"Äpple"]
["OM-uttryck kan även tvinga fram ytterligare beräkningar som utförs om ett visst villkor uppfylls. Vi kommer att utvärdera en cell för att avgöra om moms ska tas ut och beräkna om villkoret är sant.\n",null,"Apelsin"]
["I cell F33 har vi skrivit in =OM(E33=\"Ja\";F31*Moms;0) där vi angivit Moms som ett Namngivet område med värdet 0,0825. Formeln säger om cellen E33 är lika med Ja ska cell F31 multipliceras med Moms, annars returneras 0.\n\nStudera vad som händer med uträkningen om du ändrar Ja till Nej i cell E33."]
["Därefter har vi lagt till ett OM-uttryck för att beräkna frakt om så är nödvändigt. I cell F35 visas =OM(E35=\"Ja\";SUMMA(D28:D29)*1,25;0). Detta betyder att ”om värdet i cell E35 är Ja ska summan i kolumnen Antal i tabellen ovan multipliceras med 1,25, annars returneras 0”.\n",null,50,{"$f":"IF(C12<100,\"Mindre än 100\",\"Större än eller lika med 100\")","v":"Mindre än 100"}]
["Ändra 1,25 till ”Frakt” i formeln i cell F35. När du börjar skriva kommer Excel hitta det åt dig automatiskt. När så sker trycker du på TABB. Det här är ett Namngivet område som vi har angett i Formler > Definiera namn. Det betyder att om du måste uppdatera fraktkostnaden behöver du bara ändra på ett ställe, och i övrigt använda namnet Frakt i arbetsboken.\n\n"]
["BRA ATT VETA\nNär du skapar en formel placerar Excel automatiskt färgade kantlinjer runt alla områden som refereras till i formeln, och motsvarande områden i formeln får samma färg. Du kan se detta om du markerar cellen F33 och trycker på F2 för att redigera formeln."]
["EXPERTTIPS\nMed hjälp av Namngivna områden kan du definiera villkor eller värden på ett ställe och sedan återanvända dem i arbetsboken. Du kan se alla namngivna områden i den här arbetsboken genom att gå till Formler > Namnhanteraren. Klicka här för att läsa mer.\n"]
["Föregående"]
["Nästa"]
["Mer information på webben"]
["Allt om OM-funktionen"]
["Allt om IFS-funktionen"]
["Avancerade OM-uttryck"]
["Kostnadsfria Excel-kurser online"]
[]
[]
[]
[]
[null,null,"Vara","Antal","Kostnad","Summa"]
[null,null,"Pryl",2,{"v":9.760711585683554,"d":"9.76 kr"},{"$f":"'OM-uttryck'!$E$28:$E$29*'OM-uttryck'!$D$28:$D$29","v":{"v":19.521423171367108,"d":"19.52 kr"}}]
[null,null,"Grej",3,{"v":3.4189202461080024,"d":"3.42 kr"},{"$f":"'OM-uttryck'!$E$28:$E$29*'OM-uttryck'!$D$28:$D$29","v":{"v":10.256760738324008,"d":"10.26 kr"}}]
[]
[{"$nulls":3},"Delsumma",{"$f":"SUM('OM-uttryck'!$E$28:$E$29)","v":{"v":13.179631831791557,"d":"13.18 kr"}},{"$f":"SUM('OM-uttryck'!F28:F29)","v":{"v":29.778183909691116,"d":"29.78 kr"}}]
[]
[{"$nulls":3},"Moms?","Ja",{"$f":"IF(E33=\"Ja\",F31*Moms,0)","v":{"v":2.456700172549517,"d":"2.46 kr"}}]
[]
[{"$nulls":3},"Frakt?","Ja",{"$f":"IF(E35=\"Ja\",SUM(D28:D29)*1.25,0)","v":{"v":6.25,"d":"6.25 kr"}}]
[]
[{"$nulls":3},"Summa",null,{"$f":"SUM(F33,F31,F35)","v":{"v":38.48488408224063,"d":"38.48 kr"}}]

{"sheet":"LETARAD","index":8,"n_rows":43,"n_cols":7,"rows_kept":43}
["LETARAD"]
["LETARAD är en av de mest använda funktionerna i Excel (och en av våra favoriter också!). Med LETARAD kan du söka efter ett värde i en kolumn till vänster och returnera information i en kolumn till höger om en matchning hittas. LETARAD säger:\n"]
["=HITTARAD(A1;B:C;2;FALSKT)"]
["Vad vill du leta efter?"]
["Om du hittar det, hur många kolumner till höger ska värdet hämtas?"]
["Var vill du leta efter det?"]
["Vill du ha en exakt eller ungefärlig matchning?"]
["I cell D22 anger du =LETARAD(C22;C17:D20;2;FALSKT). Rätt svar för Äpplen är 50. LETARAD sökte Äpplen, hittade det och gick sedan en kolumn till höger och returnerade värdet.\n\n"]
["Prova själv i avsnittet Kött i cell G22. Förhoppningsvis har du skrivit =LETARAD(F22;F17:G20;2;FALSKT).\n\n"]
["EXPERIMENT\nProva att välja olika objekt i listrutorna. Observera att resultatcellerna uppdaterar sig själva med nya värden."]
["Visa mer information"]
["Nästa"]
["LETARAD och #SAKNAS"]
["Du kommer oundvikligen att stöta på en situation där LETARAD inte hittar det du söker, och därför returnerar ett fel (#SAKNAS). Ibland beror det på att sökvärdet helt enkelt inte finns, eller också kan det hända att referenscell inte har något värde ännu.\n"]
["Om du vet att sökvärdet finns, men vill dölja felet om referenscellen är tom, kan du använda ett OM-uttryck. I det här fallet ska vi använda vår befintliga LETARAD-formel så här i cell D43:\n\n=OM(C43=\"\";\"\";LETARAD(C43;C37:D41;2;FALSKT))\n\nDet betyder att om cellen C43 är tom (””), returnera ingenting, annars returneras LETARAD-resultatet. Observera den andra avslutande parentes i slutet av formeln. Den stänger OM-satsen.\n"]
["Om du inte vet om sökvärdet finns, men ändå vill dölja felet #SAKNAS, kan du använda en funktion som kallas OMFEL i cell G43: =OMFEL(LETARAD(F43;F37:G41;2;FALSKT);\"\"). OMFEL fungerar så att LETARAD-resultatet visas om det är ett giltigt värde, annars visas ingenting (””). Vi visade inget här (””), men du kan även använda tal (0, 1, 2 och så vidare) eller text, till exempel ”formeln är inte korrekt”.\n",null,"Frukt","Belopp",null,"Kött","Belopp"]
["VIKTIG INFORMATION\nOMFEL är en så kallas generell felhanterare, vilket innebär att den döljer alla eventuella fel som kan förekomma i formeln. Detta kan orsaka problem om Excel försöker meddela att formeln innehåller en faktiskt fel som måste åtgärdas.\n\nEn tumregel är att inte använda felhanterare i formler förrän du är helt säker på att de fungerar korrekt.",null,"Äpplen",50,null,"Nötkött",50]
["Föregående",null,"Apelsiner",20,null,"Kyckling",30]
["Nästa",null,"Bananer",60,null,"Fläsk",10]
["Mer information på webben",null,"Citroner",40,null,"Fisk",50]
["Allt om LETARAD-funktionen"]
["Allt om INDEX/PASSA-funktionerna",null,"Äpplen",null,null,"Fläsk"]
["Allt om OMFEL-funktionen"]
["Skapa pivottabeller för att analysera kalkylbladsdata"]
["Kostnadsfria Excel-kurser online"]
{"$rows_empty":9}
[null,null,"Om funktionen SUMMA i cell D42 kunde tala skulle det låta så här: Summera värdena i cellerna D38, D39, D40 och D41."]
[null,null,"Vara","Belopp",null,"Vara","Belopp"]
[null,null,"Bröd",50,null,"Bröd",50]
[null,null,"Munkar",100,null,"Munkar",100]
[null,null,"Kakor",40,null,"Kakor",40]
[null,null,"Tårtor",50,null,"Tårtor",50]
[null,null,"Pajer",20,null,"Pajer",20]
[]
[{"$nulls":3},{"$f":"VLOOKUP(C43,C37:D41,2,FALSE)","v":{"$error":"#N/A"}},null,"Bakverk",{"$f":"IFERROR(VLOOKUP(F43,F37:G41,2,FALSE),\"\")","v":""}]

{"sheet":"Villkorsstyrda funktioner","index":9,"n_rows":123,"n_cols":34,"rows_kept":123}
["Villkorsstyrda funktioner – SUMMA.OM"]
["Med villkorsstyrda funktioner kan du summera, ta fram medelvärden eller räkna ut min eller max för ett område baserat på villkor eller kriterier som du anger. Exempelvis: hur många av frukterna i listan är äpplen? Eller: hur många av apelsinerna kommer från Florida?",null,"Frukt","Belopp",null,"Frukt","Typ","Belopp",{"$nulls":17},"Frukt",null,"Äpplen",null,"Apelsiner",null,"Bananer",null,"Citroner"]
["SUMMA.OM kan summera ett område baserat på ett villkor som gäller ett annat område, till exempel hur många äpplen du har. Markera cell D17 och skriv in =SUMMA.OM(C3:C14;C17;D3:D14). SUMMA.OM är konstruerad så här:",null,"Äpplen",50,null,"Äpplen","Fuji",50,{"$nulls":17},"Äpplen",null,"Fuji",null,"Florida",null,"Cavendish",null,"Rough"]
["=SUMMA.OM(C3:C14;C17;D3:D14)",null,"Apelsiner",20,null,"Apelsiner","Florida",20,{"$nulls":17},"Apelsiner",null,"Honeycrisp",null,"Navel",null,"Lady Finger",null,"Eureka"]
["Vilket område du vill titta på?",null,"Bananer",60,null,"Bananer","Cavendish",60,{"$nulls":17},"Bananer"]
["Vilket värde (text eller tal) vill du leta efter?",null,"Citroner",40,null,"Citroner","Rough",40,{"$nulls":17},"Citroner"]
["Vilket område vill du summera för varje matchat värde?",null,"Äpplen",50,null,"Äpplen","Honeycrisp",50]
["SUMMA.OMF är detsamma som SUMMA.OM, men du kan använda flera villkor. I det här exemplet kan du söka efter Frukt och Typ, inte bara efter Frukt. Markera cell H17 och skriv in =SUMMA.OMF(H3:H14;F3:F14;F17;G3:G14;G17). SUMMA.OMF är konstruerad så här:\n",null,"Apelsiner",20,null,"Apelsiner","Navel",20]
["=SUMMA.OMF(H3:H14;F3:F14;F17;G3:G14;G17)",null,"Bananer",60,null,"Bananer","Lady Finger",60]
["Vilket område vill du summera?",null,"Citroner",40,null,"Citroner","Eureka",40]
["Det här är det första området att genomsöka efter matchningar",null,"Äpplen",50,null,"Äpplen","Honeycrisp",50]
["Det här är villkoret för den första matchningen",null,"Apelsiner",20,null,"Apelsiner","Navel",20]
["Det här är det andra området att genomsöka efter matchningar",null,"Bananer",60,null,"Bananer","Cavendish",60]
["Det här är villkoret för den andra matchningen",null,"Citroner",40,null,"Citroner","Eureka",40]
["EXPERTTIPS\nAlla Frukt- och Typ-celler har en listruta där du kan välja olika frukter. Prova själv och observera hur formlerna uppdateras automatiskt."]
["Visa mer information",null,"Frukt","SUMMA.OM",null,"Frukt","Typ","SUMMA.OMF"]
["Nästa steg",null,"Äpplen",null,null,"Apelsiner","Florida"]
["Villkorsstyrda funktioner – ANTAL.OM"]
["Med ANTAL.OM och ANTAL.OMF kan du räkna antalet värden i ett område baserat på ett villkor du anger. De skiljer sig en aning från de andra OM- och OMF-funktionerna då de bara har ett villkorsområde och villkor. De utvärderar inte ett område och summerar i ett annat område."]
["Markera cell D64 och skriv in =ANTAL.OM(C50:C61;C64). ANTAL.OM är konstruerad så här:"]
["=ANTAL.OM(C50:C61;C64)"]
["Vilket område du vill titta på?"]
["Vilket värde (text eller tal) vill du leta efter?"]
["ANTAL.OMF är detsamma som ANTAL.OM, men du kan använda flera villkor. I det här exemplet kan du söka efter Frukt och Typ, inte bara efter Frukt. Markera cell H64 och skriv =ANTAL.OMF(F50:F61;F64;G50:G61;G64). ANTAL.OMF är konstruerad så här:\n"]
["=ANTAL.OMF(F50:F61;F64;G50:G61;G64)"]
["Det här är det första området att räkna"]
["Det här är villkoret för den första matchningen"]
["Det här är det andra området att räkna"]
["Det här villkor för den andra matchningen"]
["Visa mer information"]
["Nästa"]
["Fler villkorsstyrda funktioner"]
["Du har redan sett SUMMA.OM, SUMMA.OMF, ANTAL.OM och ANTAL.OMF. Nu kan du på egen hand kika på andra funktioner, exempelvis MEDEL.OM/OMF, MAXIFS och MINIFS. De är konstruerade på samma sätt, så när du angivit en formel är det bara att ersätta funktionsnamnet med det du vill använda. Vi har angivit alla funktioner du behöver för cell E106, så att du kan kopiera och klistra in de här, eller skriva in dem för hand som övning.\n\nSUMMA.OM \t=SUMMA.OM(C92:C103;C106;E92:E103) \nSUMMA.OMF \t=SUMMA.OMF(E92:E103;C92:C103;C106;D92:D103;D106) \nMEDEL.OM \t=MEDEL.OM(C92:C103;C106;E92:E103) \nMEDEL.OMF\t=MEDEL.OMF(E92:E103;C92:C103;C106;D92:D103;D106)\nANTAL.OM \t=ANTAL.OM(C92:C103;C106)\nANTAL.OMF \t=ANTAL.OMF(C92:C103;C106;D92:D103;D106) \nMAXIFS \t=MAXIFS(E92:E103;C92:C103;C106;D92:D103;D106)\nMINIFS \t=MINIFS(E92:E103;C92:C103;C106;D92:D103;D106)\n"]
["Visa mer information"]
["Nästa"]
["SUMMA.OM med en värdeargument"]
["Här är ett exempel på funktionen SUMMA.OM som använder större än (>) för att hitta alla värden större än en viss summa:"]
[{"$f":"SUMIF(D118:D122,\">=50\")","v":200}]
["Summera några värden baserat på detta villkor:"]
["Titta igenom dessa celler …\n "]
["… och summera om värdet är större än 50.\n "]
["OBS! Om du märker att du skapar många villkorsformler kan en bättre lösning vara att använda en pivottabell. Den här artikeln om pivottabeller innehåller mer information."]
["Mer information på webben"]
["Allt om funktionen SUMMA.OM"]
["Allt om funktionen SUMMA.OMF"]
["Allt om funktionen ANTAL.OM"]
["Allt om funktionen ANTAL.OMF"]
["Allt om funktionen MEDEL.OM"]
["Allt om funktionen MEDEL.OMF",null,"Frukt","Belopp",null,"Frukt","Typ","Belopp"]
["Allt om funktionen MINIFS",null,"Äpplen",50,null,"Äpplen","Fuji",50]
["Allt om funktionen MAXIFS",null,"Apelsiner",20,null,"Apelsiner","Florida",20]
["Skapa en listruta",null,"Bananer",60,null,"Bananer","Cavendish",60]
["Kostnadsfria Excel-kurser online",null,"Citroner",40,null,"Citroner","Rough",40]
["Tillbaka till början",null,"Äpplen",50,null,"Äpplen","Honeycrisp",50]
["Nästa",null,"Apelsiner",20,null,"Apelsiner","Navel",20]
[null,null,"Bananer",60,null,"Bananer","Lady Finger",60]
[null,null,"Citroner",40,null,"Citroner","Eureka",40]
[null,null,"Äpplen",50,null,"Äpplen","Honeycrisp",50]
[null,null,"Apelsiner",20,null,"Apelsiner","Navel",20]
[null,null,"Bananer",60,null,"Bananer","Cavendish",60]
[null,null,"Citroner",40,null,"Citroner","Eureka",40]
[]
[null,null,"Frukt","ANTAL.OM",null,"Frukt","Typ","ANTAL.OMF"]
[null,null,"Äpplen",{"$f":"COUNTIF(C50:C61,C64)","v":3},null,"Apelsiner","Florida",{"$f":"COUNTIFS(F50:F61,F64,G50:G61,G64)","v":1}]
{"$rows_empty":26}
[null,null,"Frukt","Typ","Belopp"]
[null,null,"Äpplen","Fuji",50]
[null,null,"Apelsiner","Florida",20]
[null,null,"Bananer","Cavendish",60]
[null,null,"Citroner","Rough",40]
[null,null,"Äpplen","Honeycrisp",50]
[null,null,"Apelsiner","Navel",20]
[null,null,"Bananer","Lady Finger",60]
[null,null,"Citroner","Eureka",40]
[null,null,"Äpplen","Honeycrisp",50]
[null,null,"Apelsiner","Navel",20]
[null,null,"Bananer","Cavendish",60]
[null,null,"Citroner","Eureka",40]
[]
[null,null,"Frukt","Typ","Prova"]
[null,null,"Citroner","Eureka",{"$f":"AVERAGEIFS(E92:E103,C92:C103,C106,D92:D103,D106)","v":40}]
{"$rows_empty":10}
[null,null,"Artikel","Belopp"]
[null,null,"Bröd",50]
[null,null,"Munkar",100]
[null,null,"Kakor",40]
[null,null,"Tårtor",50]
[null,null,"Pajer",20]
[{"$nulls":3},{"$f":"SUMIF(D118:D122,\">=50\")","v":200}]

{"sheet":"Funktionsguiden","index":10,"n_rows":14,"n_cols":4,"rows_kept":14}
["Låt Funktionsguiden vägleda dig"]
["Om du vet namnet på funktionen du vill använda, men du är osäker på hur den skrivs kan du låta Funktionsguiden hjälpa dig.\n"]
["Markera cell D10 och gå till Formler > Infoga funktion > skriv LETARAD i rutan Sök efter funktion och tryck på Kör. När du ser LETARAD markerat klickar du på OK längst ned. När du markerar en funktion i listan visar Excel dess syntax.\n"]
["Ange sedan funktionsargument i respektive textrutor. Varje argument du anger utvärderas och resultat visas längst ned. För varje avsnitt visas villkoren för varje argument längst ned i dialogrutan. När du är nöjd och trycker på OK anger Excel formeln åt dig.\n\n\n",null,"Frukt","Belopp"]
["KOLLA IN DET HÄR\nFörhoppningsvis har du skrivit =LETARAD(C10;C5:D8;2;FALSKT).",null,"Äpplen",50]
["BRA ATT VETA\nDu kan ange referenser till celler och cellområden eller markera dem med musen.",null,"Apelsiner",20]
["BRA ATT VETA\nNär du skriver in ett argument visas en beskrivning av argumentet längre ned i formuläret, ovanför formelns resultat.\n",null,"Bananer",60]
["Föregående",null,"Citroner",40]
["Nästa"]
["Mer information på webben",null,"Äpplen",{"$f":"VLOOKUP(C10,C5:D8,2,FALSE)","v":50}]
["Översikt över formler i Excel"]
["Excel-funktioner (efter kategori)"]
["Excel-funktioner (alfabetisk ordning)"]
["Kostnadsfria Excel-kurser online"]

{"sheet":"Fel i formler","index":11,"n_rows":36,"n_cols":4,"rows_kept":36}
["Rätta till fel i formler"]
["Vid något tillfälle kommer du att träffa på en formel som innehåller ett fel, vilket Excel visar med #ErrorName. Fel kan vara användbara eftersom de pekar ut när något inte fungerar som tänkt, men de kan vara svåra att åtgärda. Som tur är finns det flera alternativ som hjälper dig att reda på orsaken till felet och åtgärda det.\n"]
["Felkontroll – Gå till Formler > Felkontroll. En dialogruta som beskriver möjliga orsaker till det felet du råkat ut för visas. I cell D9 orsakas felet #SAKNAS av att det inte finns något värde som matchar ”Äpple”. Du kan lösa detta genom att använda ett värde som finns, genom att dölja felet med OMFEL, eller bara ignorera det eftersom det försvinner när du använder ett värde som finns.\n",null,"Frukt","Belopp"]
["Om du klickar på Hjälp med det här felet öppnas hjälpavsnittet som handlar om det aktuella felmeddelandet. Om du klickar på Visa beräkningssteg visas dialogrutan Utvärdera formel.\n",null,"Äpplen",50]
["Varje gång du klickar på Utvärdera går Excel igenom formeln ett avsnitt i taget. Du får inte alltid veta vad som är fel, men du får veta var felet ligger. Kika på hjälpavsnittet för att undersöka närmare var felet i din formel finns.\n",null,"Apelsiner",20]
["EXPERIMENT\nVad är felet här? Tips: Vi vill ta reda på objektens totala SUMMA.",null,"Bananer",60]
["BRA ATT VETA\nKlicka på Alternativ för att ange villkor för när fel i Excel ska visas eller ignoreras.\n",null,"Citroner",40]
["Föregående"]
["Nästa",null,"Äpple",{"$f":"VLOOKUP(C9,C3:D7,2,FALSE)","v":{"$error":"#N/A"}}]
["Mer information på webben"]
["Hitta fel i formler"]
["Hur du undviker fel i formler"]
["Utvärdera en kapslad formel ett steg i taget"]
["Kostnadsfria Excel-kurser online"]
{"$rows_empty":15}
[null,null,"Frukt","Belopp"]
[null,null,"Äpplen",50]
[null,null,"Apelsiner",20]
[null,null,"Bananer",60]
[null,null,"Citroner",40]
[]
[null,null,"Summa",{"$f":"sume(D31:D34)","v":{"$error":"#NAME?"}}]

{"sheet":"Läs mer","index":12,"n_rows":5,"n_cols":1,"rows_kept":5}
["Har du fler frågor om Excel?"]
["Tryck på ALT+C och skriv det du vill veta."]
["Fortsätt. Det finns mer att lära sig med Excel:"]
["Community: Ställ frågor och få kontakt med andra Excel-användare.\n"]
["Vad mer är nytt?\nOffice 365-prenumeranter får kontinuerliga uppdateringar och nya funktioner.\n\n"]